bitfinex-derivatives/quotes_ETHF0:USTF0_20210102
["timestamp","ask_amount","ask_price","bid_price","bid_amount"]
[1609571611745,1.3253951,736.07,735.97,110.3133]
[1609571612148,1.3253951,736.07,736.06,6.01438]
[1609571612347,1.32536872,736.17,736.06,9.85138]
[1609571614150,1.32536872,736.17,736.16,6.01438]
[1609571614350,2.65073744,736.31,736.16,6.01438]
[1609571614351,1.98806244,736.23,736.16,6.01438]
[1609571614552,1.98806244,736.23,736.17,15.0]
[1609571614752,1.98806244,736.23,736.22,126.7215]
[1609571614952,1.9876608,736.27,736.22,126.7215]
[1609571615152,1.9876608,736.27,736.22,131.1805]
[1609571615752,8.29020191,736.56,736.22,131.1805]
[1609571615753,1.32484152,736.37,736.22,116.1805]
[1609571615952,1.32484152,736.37,736.23,15.0]
[1609571616152,1.32484152,736.37,736.36,6.01438]
[1609571616553,5.80446193,736.67,736.36,6.01438]
[1609571616554,1.32470407,736.5,736.44,112.8731]
[1609571616753,1.32470407,736.5,736.44,117.3191]
[1609571617152,2.64940814,736.65,736.44,117.3191]
[1609571617153,1.32469285,736.56,736.44,117.3191]
[1609571617556,1.32467541,736.54,736.44,117.3191]
[1609571618152,1.32467541,736.54,736.53,6.01438]
[1609571618554,1.32461558,736.59,736.53,6.01438]
[1609571618957,1.32461312,736.61,736.53,6.01438]
[1609571619355,1.98691968,736.69,736.61,107.5949]
[1609571619655,1.32462762,736.62,736.61,111.1249]
[1609571619854,1.98691968,736.69,736.61,111.1249]
[1609571620255,1.98691968,736.69,736.68,6.01438]
[1609571620654,1.98691968,736.69,736.61,3.53]
[1609571621256,2.64939419,736.72,736.61,3.53]
[1609571621957,1.98704792,736.64,736.61,3.53]
[1609571622356,1.98704792,736.64,736.63,6.01438]
[1609571623759,1.98698947,736.66,736.63,6.01438]
[1609571624157,1.98700494,736.67,736.63,6.01438]
[1609571624858,4.47042488,736.72,736.66,99.4105]
[1609571626360,1.98697099,736.68,736.66,99.4105]
[1609571626660,1.98697099,736.68,736.61,3.53]
[1609571626860,1.98697099,736.68,736.5,104.933]
[1609571627460,1.32470173,736.57,736.5,104.933]
[1609571628060,1.32470818,736.56,736.5,104.933]
[1609571628460,1.32470818,736.56,736.55,6.01438]
[1609571630762,1.9871669,736.62,736.55,6.01438]
[1609571632064,1.98713095,736.61,736.55,6.01438]
[1609571633165,1.98702188,736.6,736.55,6.01438]
[1609571634365,1.32465128,736.57,736.55,6.01438]
[1609571635068,1.32463183,736.58,736.55,6.01438]
[1609571635267,1.32463183,736.58,736.45,78.4988]
[1609571636366,1.32463183,736.58,736.57,6.01438]
[1609571637069,1.98698165,736.64,736.57,6.01438]
[1609571638677,1.98700095,736.65,736.57,6.01438]
[1609571640479,4.49291497,736.8,736.57,6.01438]
[1609571640480,1.32459012,736.58,736.57,6.01438]
[1609571641282,1.3245896,736.62,736.57,6.01438]
[1609571642081,1.9868844,736.69,736.57,6.01438]
[1609571642281,1.32464975,736.62,736.58,0.4]
[1609571643081,1.98695975,736.64,736.58,0.4]
[1609571644482,2.64927966,736.72,736.58,0.4]
[1609571644483,1.98699243,736.65,736.58,0.4]
[1609571645782,1.98701779,736.64,736.58,0.4]
[1609571646482,1.98698934,736.63,736.58,0.4]
[1609571648684,1.98693195,736.64,736.58,0.4]
[1609571649884,1.32458961,736.61,736.58,0.4]
[1609571650386,0.82787007,736.6,736.58,0.4]
[1609571650784,0.82787007,736.6,736.59,103.2149]
[1609571650983,0.82787007,736.6,736.59,121.4959]
[1609571651184,0.82771099,736.61,736.59,121.4959]
[1609571651983,0.82771099,736.61,736.59,106.4959]
[1609571652485,0.1655309,736.72,736.59,106.4959]
[1609571654086,0.16552381,736.76,736.6,15.0]
[1609571654485,0.16552381,736.76,736.75,6.01438]
[1609571654686,0.16552381,736.76,736.75,10.82038]
[1609571654885,0.82761906,736.79,736.75,10.82038]
[1609571654886,0.16552257,736.79,736.75,10.82038]
[1609571655087,0.16552257,736.79,736.78,78.1461]
[1609571657492,0.16551652,736.82,736.78,78.1461]
[1609571657892,1.32413218,736.88,736.78,78.1461]
[1609571657893,0.16551621,736.85,736.78,78.1461]
[1609571658593,0.16551621,736.85,736.84,6.01438]
[1609571658992,0.82754775,736.87,736.84,6.01438]
[1609571660094,0.16551029,736.87,736.84,6.01438]
[1609571661694,0.16551213,736.88,736.84,6.01438]
[1609571662293,0.16551143,736.89,736.84,6.01438]
[1609571664093,0.82755714,736.92,736.84,6.01438]
[1609571664296,0.16551198,736.9,736.84,6.01438]
[1609571665596,0.16551303,736.91,736.84,6.01438]
[1609571666999,2.6481967,737.13,736.84,6.01438]
[1609571667000,0.16551344,736.9,736.84,6.01438]
[1609571668497,0.16551555,736.89,736.84,6.01438]
[1609571673008,0.16549233,736.99,736.84,6.01438]
[1609571674808,0.16549233,736.99,736.98,6.01438]
[1609571675006,0.82746163,737.02,736.98,6.01438]
[1609571675407,0.82746163,737.02,736.98,9.42738]
[1609571676007,0.82747788,737.01,736.98,9.42738]
[1609571676707,0.16549385,736.99,736.98,9.42738]
[1609571677410,0.1654936,737.01,736.98,9.42738]
[1609571678208,0.16549404,737.0,736.98,9.42738]
[1609571678710,0.16549559,736.99,736.98,9.42738]
[1609571680012,0.82747796,737.02,736.98,9.42738]
[1609571680212,0.8274838,737.01,736.98,9.42738]
[1609571683114,0.8274838,737.01,736.98,3.413]
[1609571683317,0.16552831,736.99,736.98,3.413]
[1609571683515,0.16552831,736.99,736.75,4.806]
[1609571683715,0.16552831,736.99,736.6,107.2032]
[1609571684615,0.16552831,736.99,736.59,3.281]
[1609571684616,15.0,736.99,736.59,3.281]
[1609571684815,15.0,736.93,736.59,3.281]
[1609571685018,0.16555101,736.73,736.72,6.01438]
[1609571685518,0.82776956,736.75,736.21,89.3512]
[1609571685720,0.82776956,736.75,736.14,14.70756361]
[1609571685919,0.82776956,736.75,736.51,110.8451]
[1609571686119,0.82776956,736.75,736.51,115.4191]
[1609571686621,0.16555615,736.7,736.51,115.4191]
[1609571687020,0.16555615,736.7,736.51,4.574]
[1609571687220,104.8647,736.65,736.51,4.574]
[1609571688121,0.16558995,736.54,736.51,4.574]
[1609571688922,0.16558995,736.54,736.53,6.01438]
[1609571690624,0.82795476,736.54,736.53,6.01438]
[1609571691121,1.98709142,736.65,736.53,6.01438]
[1609571691122,0.1655876,736.57,736.53,6.01438]
[1609571693827,1.98687712,736.71,736.53,6.01438]
[1609571693828,0.16556263,736.67,736.53,6.01438]
[1609571694628,0.16555935,736.71,736.53,6.01438]
[1609571695029,0.16555935,736.71,736.7,6.01438]
[1609571695432,0.16555935,736.71,736.7,10.69238]
[1609571696833,0.82780799,736.73,736.7,10.69238]
[1609571697342,0.16555432,736.73,736.7,10.69238]
[1609571700835,0.16555432,736.73,736.7,4.678]
[1609571701036,112.83948,736.71,736.54,6.01438]
[1609571701736,0.16558375,736.63,736.54,6.01438]
[1609571702137,0.16558749,736.58,736.54,6.01438]
[1609571703039,6.01438,736.55,736.54,6.01438]
[1609571708245,6.2627726,736.55,736.54,6.01438]
[1609571708545,6.01438,736.55,736.54,6.01438]
[1609571710046,0.82798271,736.57,736.54,6.01438]
[1609571711448,0.82798256,736.58,736.54,6.01438]
[1609571713349,0.82799292,736.57,736.54,6.01438]
[1609571713748,0.82799292,736.57,736.51,4.574]
[1609571713949,80.3329,736.52,735.98,14.76040966]
[1609571714150,0.82799292,736.57,735.98,14.76040966]
[1609571714352,77.36,736.1,735.98,19.56640966]
[1609571715153,77.36,736.1,736.08,6.01438]
[1609571715852,77.36,736.1,735.98,4.806]
[1609571716153,78.02278223,736.1,735.98,4.806]
[1609571716753,0.66280623,736.07,735.98,4.806]
[1609571717155,6.01438,735.99,735.98,4.806]
[1609571719459,6.01438,735.99,735.59,6.01438]
[1609571719856,14.9066,735.97,735.59,6.01438]
[1609571723661,16.23239002,735.97,735.59,6.01438]
[1609571724361,14.9066,735.97,735.59,6.01438]
[1609571725161,6.01438,735.6,735.59,6.01438]
[1609571726764,0.66290533,735.89,735.59,6.01438]
[1609571726964,0.66290533,735.89,735.59,10.33738]
[1609571727165,91.9747,736.52,735.59,4.323]
[1609571727166,0.66284911,735.88,735.59,4.323]
[1609571727964,0.66282241,735.99,735.59,4.323]
[1609571729170,0.66282241,735.99,735.9,6.01438]
[1609571729671,0.66282241,735.99,735.9,9.53938]
[1609571729866,96.3057,735.91,735.9,3.525]
[1609571731167,102.32008,735.91,735.9,3.525]
[1609571731368,103.64585101,735.91,735.9,3.525]
[1609571731977,102.32008,735.91,735.9,3.525]
[1609571732871,107.292584,735.91,735.9,3.525]
[1609571734271,115.58007284,735.91,735.9,3.525]
[1609571734775,19.27437284,735.91,735.9,3.525]
[1609571734977,19.27437284,735.91,735.59,4.323]
[1609571735176,19.27437284,735.91,735.57,6.01438]
[1609571735375,13.25999284,735.91,735.52,79.9275]
[1609571736175,13.25999284,735.91,735.2,14.89553574]
[1609571736575,2.65199643,735.94,735.13,18.21626323]
[1609571736576,0.24848825,735.81,735.3,14.91689296]
[1609571737075,0.24848237,735.8,735.29,14.91716269]
[1609571737277,6.01438,735.66,735.57,6.01438]
[1609571739079,0.24860875,735.79,735.57,6.01438]
[1609571739278,0.24860875,735.79,735.57,4.637]
[1609571740079,0.2486094,735.85,735.57,4.637]
[1609571741280,6.01438,735.79,735.64,6.01438]
[1609571745287,6.01438,735.79,735.76,6.01438]
[1609571745487,6.01438,735.79,735.76,4.251]
[1609571747287,6.01438,735.79,735.76,10.26538]
[1609571749594,6.01438,735.79,735.76,4.251]
[1609571750594,6.01438,735.79,735.57,4.637]
[1609571750895,6.01438,735.79,735.33,14.91590283]
[1609571751296,6.01438,735.7,735.62,6.01438]
[1609571757410,6.01438,735.7,735.23,110.1470304]
[1609571757411,6.01438,735.7,735.23,14.9164304]
[1609571757606,81.3068,735.4,735.23,14.9164304]
[1609571758007,81.3068,735.4,735.03,14.92320419]
[1609571758609,81.3068,735.4,734.71,109.103]
[1609571758610,0.24740028,735.38,734.86,14.92531638]
[1609571759206,0.24740028,735.38,734.86,14.60001638]
[1609571759406,6.01438,734.87,734.86,14.60001638]
[1609571759606,0.24740028,735.38,734.86,14.60001638]
[1609571759607,92.2736,734.95,734.86,14.60001638]
[1609571759808,0.24740028,735.38,734.86,17.66001638]
[1609571760011,0.24734853,735.34,734.86,3.06]
[1609571760310,0.24718547,735.24,734.86,3.06]
[1609571760711,0.24723291,735.26,734.86,3.06]
[1609571761313,6.01438,734.99,734.93,6.01438]
[1609571762315,0.24675517,735.26,734.93,6.01438]
[1609571762817,90.07797164,735.27,734.93,6.01438]
[1609571763316,6.01438,735.13,735.08,6.01438]
[1609571764116,6.01438,735.13,734.86,3.06]
[1609571764916,6.01438,735.13,734.65,18.2457001]
[1609571765518,6.01438,735.13,735.12,6.01438]
[1609571765717,6.01438,735.13,735.12,9.90538]
[1609571766419,6.01438,735.13,735.12,3.891]
[1609571767220,20.82038,735.13,735.12,3.891]
[1609571767421,35.82038,735.13,734.62,18.24547027]
[1609571767820,21.01438,735.13,734.62,18.24547027]
[1609571768219,6.01438,735.13,734.62,18.24547027]
[1609571768419,8.73138,735.13,734.62,18.24547027]
[1609571768622,8.73138,735.13,734.49,18.2582337]
[1609571769020,6.01438,735.13,734.49,18.2582337]
[1609571769220,0.12292371,734.7,734.37,98.9781]
[1609571769419,6.01438,734.53,734.4,6.01438]
[1609571771321,6.01438,734.53,734.22,14.93758756]
[1609571771520,6.01438,734.53,734.24,6.01438]
[1609571771721,6.01438,734.53,734.24,10.54638]
[1609571772924,6.01438,734.53,734.33,14.93635788]
[1609571773423,6.01438,734.53,734.48,6.01438]
[1609571773623,6.01438,734.53,734.48,9.74938]
[1609571774324,6.01438,734.53,734.48,3.735]
[1609571774527,82.2767,734.49,734.48,3.735]
[1609571777326,6.01438,734.53,734.48,3.735]
[1609571778730,6.01438,734.53,734.48,4.829]
[1609571781532,6.01438,734.53,734.52,0.6]
[1609571784538,5.61438,734.53,734.52,0.6]
[1609571799545,5.61438,734.53,734.52,6.61438]
[1609571800146,0.28617382,734.77,734.52,6.61438]
[1609571800347,0.28617305,734.8,734.52,6.61438]
[1609571801349,0.28631818,734.87,734.52,6.61438]
[1609571801547,6.01438,734.72,734.52,6.61438]
[1609571803247,6.01438,734.72,734.52,0.6]
[1609571805651,6.01438,734.53,734.52,0.6]
[1609571810354,6.13655673,734.53,734.52,0.6]
[1609571810753,83.80545673,734.53,734.52,0.6]
[1609571811758,83.80545673,734.53,733.98,14.94160428]
[1609571811959,83.68328,734.53,733.91,14.94542409]
[1609571812158,6.01438,734.53,733.91,14.94542409]
[1609571812358,93.1694,734.5,733.91,14.94542409]
[1609571812558,6.01438,734.53,733.88,6.01438]
[1609571812559,0.12204672,734.33,733.88,6.01438]
[1609571812958,79.9728,734.39,733.74,14.94616345]
[1609571812959,0.12200888,734.29,733.74,14.94616345]
[1609571813559,6.01438,733.75,733.74,14.94616345]
[1609571814760,6.01438,733.75,733.72,14.94874763]
[1609571815461,92.0734,733.73,733.72,14.94874763]
[1609571815860,92.0734,733.73,733.72,10.03084763]
[1609571816060,107.0734,733.73,733.72,5.18374763]
[1609571816367,107.0734,733.73,733.36,24.91457938]
[1609571816368,3.426,733.73,733.58,14.9597093]
[1609571816968,3.426,733.73,733.51,18.28408914]
[1609571816969,0.16201241,733.6,733.15,82.2311]
[1609571817575,6.01438,733.35,733.3,6.01438]
[1609571817765,0.12154531,733.64,733.3,6.01438]
[1609571817963,0.12158063,733.68,733.3,6.01438]
[1609571819062,3.83126876,733.73,733.3,6.01438]
[1609571819063,0.12160067,733.71,733.3,6.01438]
[1609571819663,6.01438,733.5,733.39,6.01438]
[1609571820064,3.426,733.73,733.39,6.01438]
[1609571821466,0.121668,733.81,733.39,6.01438]
[1609571821667,0.121668,733.81,733.21,4.342]
[1609571821668,6.01438,733.59,733.53,6.01438]
[1609571827174,6.01438,733.59,733.33,14.95365255]
[1609571827573,6.01438,733.59,733.42,6.01438]
[1609571827972,6.01438,733.59,733.42,10.43338]
[1609571828573,6.01438,733.59,733.42,4.419]
[1609571831678,6.01438,733.44,733.42,4.419]
[1609571832382,0.12169517,733.85,733.42,4.419]
[1609571832879,0.12169517,733.85,733.36,6.01438]
[1609571833081,0.12172902,733.87,733.36,6.01438]
[1609571833480,0.12172902,733.87,733.36,10.23838]
[1609571833681,6.01438,733.62,733.36,10.23838]
[1609571833882,0.2840161,733.87,733.36,10.23838]
[1609571834083,4.483,733.93,733.39,14.95329884]
[1609571834282,0.12178509,733.96,733.39,14.95329884]
[1609571834887,0.28412046,733.94,733.37,14.95339412]
[1609571835283,4.28812046,733.94,733.37,14.95339412]
[1609571835482,19.19122046,733.94,733.37,14.95339412]
[1609571835682,19.19122046,733.94,733.43,6.01438]
[1609571836785,18.9071,733.94,733.43,6.01438]
[1609571837687,6.01438,733.64,733.43,6.01438]
[1609571839687,6.01438,733.51,733.43,6.01438]
[1609571843495,6.01438,733.51,733.36,4.224]
[1609571843694,6.01438,733.37,733.3,14.95476703]
[1609571844593,6.01438,733.37,733.21,10.35638]
[1609571844594,6.01438,733.37,733.24,14.95578394]
[1609571845197,6.01438,733.37,733.21,19.29795952]
[1609571846597,6.01438,733.37,733.21,4.342]
[1609571847000,6.01438,733.37,733.2,14.95592526]
[1609571847805,6.01438,733.37,733.15,6.01438]
[1609571847806,6.01438,733.21,733.19,14.95642275]
[1609571848204,6.01438,733.21,733.15,6.01438]
[1609571849105,0.6,733.25,733.15,6.01438]
[1609571849604,0.6,733.25,733.15,10.93838]
[1609571849804,0.6,733.25,733.24,6.01438]
[1609571850904,0.6,733.25,733.24,5.81438]
[1609571852806,0.6,733.25,733.24,5.61438]
[1609571860222,0.6,733.25,733.24,20.61438]
[1609571861421,0.6,733.25,733.24,5.61438]
[1609571872141,0.6,733.25,733.24,23.89277291]
[1609571873240,0.6,733.25,733.24,39.38677291]
[1609571873941,0.6,733.25,733.24,21.10838]
[1609571874541,0.04030158,733.89,733.24,21.10838]
[1609571874746,0.04028759,733.9,733.24,20.61438]
[1609571874942,0.04028759,733.9,733.36,91.0673]
[1609571875142,0.04028759,733.9,733.36,94.8063]
[1609571875842,0.04028759,733.9,733.85,6.01438]
[1609571876042,0.12086532,733.93,733.85,6.01438]
[1609571876642,6.01438,733.98,733.85,6.01438]
[1609571877942,6.01438,733.98,733.94,6.01438]
[1609571883346,0.1210347,734.15,733.94,6.01438]
[1609571883547,0.12095777,734.16,733.94,6.01438]
[1609571883948,6.01438,734.1,733.94,6.01438]
[1609571889451,0.12076473,734.16,733.94,18.65988]
[1609571889851,0.12076473,734.16,734.15,6.01438]
[1609571890055,0.04025491,734.16,734.15,6.01438]
[1609571891354,6.01438,734.24,734.15,6.01438]
[1609571891954,6.01438,734.24,734.23,6.01438]
[1609571893458,6.01438,734.24,734.04,4.478]
[1609571893857,6.01438,734.24,734.11,6.01438]
[1609571895061,6.1352925,734.24,734.11,6.01438]
[1609571895964,6.01438,734.24,734.11,6.01438]
[1609571898962,21.01438,734.24,734.11,6.01438]
[1609571899163,21.01438,734.24,734.04,4.478]
[1609571899362,21.01438,734.24,733.94,12.6455]
[1609571899964,6.01438,734.12,733.97,6.01438]
[1609571901366,6.01438,734.12,733.94,12.6455]
[1609571901864,6.01438,734.12,733.89,3.956]
[1609571901865,15.0,734.11,733.89,3.956]
[1609571902065,15.0,734.11,733.7,14.9503267]
[1609571902865,15.0,734.11,733.55,14.9525641]
[1609571903064,15.0,734.1,733.55,14.9525641]
[1609571903465,0.12078939,734.12,733.55,14.9525641]
[1609571903664,0.12078939,734.12,733.55,19.0155641]
[1609571904066,6.01438,734.02,733.93,6.01438]
[1609571904466,6.05461108,734.02,733.93,6.01438]
[1609571906366,6.05461108,734.02,733.8,85.6097]
[1609571906569,6.01438,734.02,733.8,85.6097]
[1609571908068,6.01438,733.94,733.81,6.01438]
[1609571909772,0.80395109,734.13,733.81,6.01438]
[1609571909773,0.04020382,734.03,733.81,6.01438]
[1609571909971,0.04020382,734.03,733.81,9.76238]
[1609571910974,0.04020463,734.02,733.81,9.76238]
[1609571912073,6.05458463,734.02,733.95,6.01438]
[1609571912774,6.01438,734.02,733.95,6.01438]
[1609571913173,0.04019682,734.03,733.95,6.01438]
[1609571913774,0.04021547,734.09,733.95,6.01438]
[1609571913977,0.04021547,734.09,734.04,6.01438]
[1609571914878,0.04019163,734.1,734.04,6.01438]
[1609571915684,0.08038325,734.11,733.81,3.748]
[1609571915685,0.04019839,734.11,733.81,3.748]
[1609571916080,0.04019839,734.11,733.98,6.01438]
[1609571916481,0.04019764,734.1,733.98,6.01438]
[1609571917082,0.04019764,734.1,733.81,4.054]
[1609571917283,0.04016654,734.08,733.81,4.054]
[1609571918080,6.01438,734.04,733.92,6.01438]
[1609571918382,6.01438,734.04,733.97,0.6]
[1609571920184,6.01438,734.04,734.02,6.01438]
[1609571920384,6.01438,734.04,733.97,0.6]
[1609571922188,6.01438,734.04,734.01,6.01438]
[1609571922588,6.01438,734.04,733.97,0.6]
[1609571924092,6.01438,734.04,733.98,6.01438]
[1609571927194,6.01438,734.04,733.97,0.6]
[1609571930199,6.01438,734.04,734.03,6.01438]
[1609571942707,0.04012438,734.13,733.97,0.6]
[1609571943010,3.0,759.81,733.97,0.6]
[1609571943011,0.04012919,734.14,733.97,0.6]
[1609571943210,0.04012919,734.14,734.13,6.01438]
[1609571944306,0.04012919,734.14,734.13,102.49918]
[1609571944912,0.08023647,734.15,734.13,102.49918]
[1609571945112,0.08023647,734.15,734.13,106.91518]
[1609571946115,0.04017338,734.28,734.13,106.91518]
[1609571947212,0.04017338,734.28,734.27,6.01438]
[1609571948015,0.04017445,734.29,734.27,6.01438]
[1609571948817,0.04019229,734.32,734.27,6.01438]
[1609571949715,0.04021065,734.35,734.27,6.01438]
[1609571949915,0.0804213,734.36,734.27,6.01438]
[1609571950217,0.04020289,734.34,734.27,6.01438]
[1609571950416,0.08040578,734.35,734.34,0.55979711]
[1609571953923,0.0803964,734.36,734.34,0.55979711]
[1609571954521,6.09476645,734.38,734.34,0.55979711]
[1609571955321,6.09476645,734.38,734.35,6.01438]
[1609571956022,6.01438,734.38,734.35,6.01438]
[1609571956820,6.01438,734.38,734.34,0.55979711]
[1609571956821,0.08038659,734.4,734.34,0.55979711]
[1609571957323,6.01438,734.37,734.34,0.55979711]
[1609571958225,0.08035083,734.36,734.34,0.55979711]
[1609571959027,6.01438,734.37,734.34,0.55979711]
[1609571962633,6.09468356,734.37,734.34,0.55979711]
[1609571963635,5.69468356,734.37,734.34,0.55979711]
[1609571966238,5.61438,734.37,734.34,0.55979711]
[1609571967040,1.28204957,734.35,734.34,0.55979711]
[1609571967845,1.28215326,734.36,734.34,0.55979711]
[1609571968246,1.28207527,734.35,734.34,0.55979711]
[1609571968948,5.61438,734.37,734.34,0.55979711]
[1609571974657,1.28464509,734.36,734.34,0.55979711]
[1609571975258,0.80263653,734.36,734.34,0.55979711]
[1609571975959,5.61438,734.37,734.34,0.55979711]
[1609571981266,0.80331229,734.42,734.34,0.55979711]
[1609571982369,0.16052456,734.36,734.34,0.55979711]
[1609571983381,6.01438,734.46,734.34,0.55979711]
[1609571983382,0.16054406,734.38,734.34,0.55979711]
[1609571983579,6.17492406,734.38,734.34,0.55979711]
[1609571984884,0.16046475,734.35,734.34,0.55979711]
[1609571986384,6.17484652,734.38,734.34,0.55979711]
[1609571986785,6.17484652,734.38,734.36,76.5722]
[1609571987987,6.01438,734.38,734.36,76.5722]
[1609571988386,6.01438,734.38,734.13,4.416]
[1609571988787,6.01438,734.38,734.03,80.4673]
[1609571989088,0.8024103,734.43,734.03,95.4673]
[1609571989488,0.08024276,734.34,734.03,95.4673]
[1609571991491,0.08026586,734.38,734.03,95.4673]
[1609571991690,0.08026586,734.38,734.37,6.01438]
[1609571992092,0.08026586,734.38,734.31,3.34]
[1609571992794,0.16053172,734.41,734.31,3.34]
[1609571992995,0.08027058,734.44,734.31,3.34]
[1609571993592,6.01438,734.41,734.36,6.01438]
[1609571993792,0.08027058,734.44,734.36,6.01438]
[1609571994294,0.08027058,734.44,734.31,3.34]
[1609571995596,6.01438,734.42,734.31,3.34]
[1609571996301,0.08025743,734.39,734.31,3.34]
[1609571997100,0.08025743,734.39,734.26,6.01438]
[1609571997601,0.08022912,734.38,734.12,92.2218]
[1609571999605,0.08020717,734.4,734.37,6.01438]
[1609572001401,0.08017186,734.39,734.37,6.01438]
[1609572002304,0.08016094,734.4,734.37,6.01438]
[1609572003704,0.08008019,734.41,734.37,6.01438]
[1609572004305,1.09475582,759.94,734.37,6.01438]
[1609572004306,0.08008325,734.42,734.37,6.01438]
[1609572004907,0.08007014,734.4,734.37,6.01438]
[1609572005105,0.08007014,734.4,734.18,4.745]
[1609572005505,0.08007014,734.4,734.13,85.736]
[1609572005706,0.08007014,734.4,734.36,6.01438]
[1609572006105,0.08013758,734.39,734.36,6.01438]
[1609572007107,0.08013788,734.4,734.36,6.01438]
[1609572009608,122.2798,734.77,734.36,6.01438]
[1609572009609,0.08010668,734.41,734.36,6.01438]
[1609572010408,0.08009112,734.42,734.36,6.01438]
[1609572011909,6.01438,734.37,734.36,6.01438]
[1609572014509,84.5015,734.43,734.36,6.01438]
[1609572014912,0.08012911,734.44,734.36,6.01438]
[1609572015612,0.08011749,734.42,734.36,6.01438]
[1609572016712,1.28187984,734.56,734.36,6.01438]
[1609572016713,0.0801471,734.39,734.36,6.01438]
[1609572017111,0.0801471,734.39,734.38,90.3441]
[1609572018413,1.92353038,734.61,734.38,90.3441]
[1609572018414,0.0801558,734.42,734.38,90.3441]
[1609572018915,0.08019445,734.48,734.38,90.3441]
[1609572020015,0.08017606,734.47,734.38,90.3441]
[1609572021917,0.08017606,734.47,734.46,6.01438]
[1609572022118,0.08013395,734.48,734.46,6.01438]
[1609572023021,0.0801294,734.47,734.46,6.01438]
[1609572023720,0.08013192,734.48,734.46,6.01438]
[1609572026730,0.08013192,734.48,734.47,87.9447]
[1609572026929,0.16025997,734.52,734.47,87.9447]
[1609572026930,0.08013839,734.52,734.47,87.9447]
[1609572028335,0.08007411,734.55,734.47,87.9447]
[1609572029032,0.0800992,734.6,734.47,87.9447]
[1609572030032,0.0800992,734.6,734.59,6.01438]
[1609572030936,0.16027058,734.62,734.59,6.01438]
[1609572031635,0.16029868,734.61,734.59,6.01438]
[1609572032434,0.16029868,734.61,734.47,87.9447]
[1609572032834,10.08338,734.69,734.47,87.9447]
[1609572032835,0.1602798,734.62,734.47,87.9447]
[1609572033834,10.88477902,734.69,734.47,87.9447]
[1609572033835,0.08013565,734.58,734.47,87.9447]
[1609572034034,0.08013565,734.58,734.55,6.01438]
[1609572035036,85.408,734.56,734.55,6.01438]
[1609572035235,85.408,734.56,734.33,4.629]
[1609572035436,85.408,734.56,734.18,3.626]
[1609572035636,85.408,734.56,734.16,79.3478]
[1609572036039,6.01438,734.45,734.27,6.01438]
[1609572036739,0.08005356,734.44,734.27,6.01438]
[1609572037138,0.08005356,734.44,734.31,80.9018]
[1609572037539,0.08005356,734.44,734.31,85.5288]
[1609572037743,0.08003675,734.41,734.31,4.627]
[1609572038139,0.08003675,734.41,734.4,6.01438]
[1609572038340,0.08003675,734.41,734.31,4.627]
[1609572038940,0.08004246,734.45,734.31,4.627]
[1609572039839,23.01225007,734.96,734.31,4.627]
[1609572039840,0.08007891,734.55,734.31,4.627]
[1609572040040,0.08007891,734.55,734.52,6.01438]
[1609572040540,0.08008424,734.56,734.52,6.01438]
[1609572042744,6.01438,734.8,734.52,6.01438]
[1609572042745,0.08017721,734.69,734.52,6.01438]
[1609572043645,0.08021394,734.67,734.52,6.01438]
[1609572044248,0.08021394,734.67,734.66,6.01438]
[1609572045852,0.08024748,734.68,734.66,6.01438]
[1609572046753,0.08024748,734.68,734.5,108.3707]
[1609572047653,6.01438,734.8,734.5,108.3707]
[1609572047654,0.08025277,734.66,734.5,108.3707]
[1609572048053,7.29842426,734.8,734.5,108.3707]
[1609572048054,0.08025247,734.68,734.5,108.3707]
[1609572048253,0.08025247,734.68,734.67,6.01438]
[1609572051460,0.08025247,734.68,734.5,108.3707]
[1609572052260,0.08025247,734.68,734.66,6.01438]
[1609572052460,0.08025139,734.7,734.66,6.01438]
[1609572053363,0.08024393,734.68,734.66,6.01438]
[1609572053861,0.08024393,734.68,734.67,11.18]
[1609572055061,6.01438,734.73,734.67,11.18]